fUST/lending_fUST_20250120
["ID","MTS","AMOUNT","RATE_DAILY","PERIOD"]
[349572009,1737302491319,160.0,0.00023338,120]
[349572010,1737302528260,228.693391,0.00013973,2]
[349572019,1737302792123,160.0,0.00023612,120]
[349572021,1737302911358,160.0,0.00023505,120]
[349572024,1737302923980,5939.9,0.0001675,2]
[349572033,1737302970765,160.0,0.00023076,120]
[349572093,1737303032345,-275.49989315,0.00019556,2]
[349572095,1737303032355,-951.04740011,0.00019854,2]
[349572097,1737303032364,-228.693391,0.00020447,2]
[349572099,1737303032374,-1026.56958123,0.00020752,2]
[349572250,1737303038140,-2548.43041877,0.00020752,2]
[349572252,1737303038152,-1000.0,0.00021,21]
[349572254,1737303038162,-1344.41210583,0.00021,10]
[349572256,1737303038173,-380.229,0.0002137,2]
[349572258,1737303038182,-395.0,0.00021651,2]
[349572260,1737303038191,-300.0,0.00021773,2]
[349572262,1737303038201,-3384.60719913,0.00021774,2]
[349572264,1737303038210,-382.5672443,0.000219,2]
[349572266,1737303038219,-5684.57069042,0.000219,3]
[349572268,1737303038228,-156.241,0.00021916,2]
[349572270,1737303038237,-810.07,0.00021917,3]
[349572272,1737303038246,-684.71,0.00021917,3]
[349572275,1737303038255,-500.0,0.00021917,3]
[349572277,1737303038265,-500.0,0.00021917,3]
[349572279,1737303038274,-500.0,0.00021917,3]
[349572281,1737303038283,-500.0,0.00021917,3]
[349572282,1737303038292,-500.0,0.00021917,3]
[349572284,1737303038302,-503.5,0.00021917,3]
[349572286,1737303038312,-500.0,0.00021917,3]
[349572289,1737303038322,-500.0,0.00021917,2]
[349572290,1737303038332,-504.43145555,0.00021917,3]
[349572293,1737303038343,-523.64,0.00021917,3]
[349572294,1737303038353,-500.0,0.00021917,3]
[349572296,1737303038363,-1025.66188598,0.00021917,2]
[349572298,1737303038373,-500.0,0.00021917,3]
[349572300,1737303038382,-916.62,0.00021917,2]
[349572302,1737303038392,-500.0,0.00021917,3]
[349572304,1737303038403,-6852.61,0.00021917,3]
[349572306,1737303038413,-164.22,0.00021917,3]
[349572308,1737303038422,-500.0,0.00021917,3]
[349572310,1737303038431,-500.0,0.00021917,3]
[349572312,1737303038441,-441.60791172,0.00021917,3]
[349573421,1737303150775,160.0,0.00022985,120]
[349573422,1737303270758,160.0,0.00023963,120]
[349573424,1737303390888,160.0,0.000233,120]
[349573426,1737303499699,205.824051,0.00013973,2]
[349573427,1737303510822,160.0,0.00023067,120]
[349573431,1737303810757,160.0,0.00023737,120]
[349573432,1737303870749,160.0,0.00023763,120]
[349573433,1737303930781,160.0,0.00023775,120]
[349573436,1737303990787,160.0,0.00023013,120]
[349573439,1737304051313,160.0,0.00023975,120]
[349573440,1737304080898,4341.47533141,0.00016,2]
[349573441,1737304102083,3443.79927326,0.000125,2]
[349573443,1737304113737,270.18758649,0.00014114,2]
[349573444,1737304115948,276.06595033,0.0001,2]
[349573450,1737304125015,843.23144658,0.00015,2]
[349573451,1737304125790,566.68784038,0.000149,2]
[349573452,1737304126006,1000.0,0.0001,2]
[349573458,1737304170826,160.0,0.00023597,120]
[349573459,1737304231326,160.0,0.0002317,120]
[349573502,1737304232394,-176.468968,0.00020296,2]
[349573504,1737304232404,-205.824051,0.00020447,2]
[349573506,1737304232414,-1023.0245299,0.00020913,2]
[349573508,1737304232424,-346.35877331,0.00020913,2]
[349573510,1737304232433,-300.0,0.00020972,2]
[349573512,1737304232443,-500.0,0.00020973,2]
[349573514,1737304232454,-500.0,0.00020973,2]
[349573516,1737304232463,-500.0,0.00020973,2]
[349573518,1737304232473,-23502.7760865,0.00021,5]
[349573520,1737304232483,-3674.63689896,0.00021,5]
[349573522,1737304232493,-114273.0,0.00021,7]
[349573524,1737304232503,-263.91254185,0.00021,2]
[349573526,1737304232513,-4799.57150949,0.00021,2]
[349573528,1737304232522,-761.2090072,0.00021141,2]
[349573531,1737304232532,-154.0848427,0.00021178,2]
[349573533,1737304232541,-153.0,0.00021178,2]
[349573534,1737304232550,-154.0080232,0.00021178,2]
[349573536,1737304232559,-159.414847,0.00021278,2]
[349573539,1737304232569,-154.7128455,0.00021278,2]
[349573541,1737304232578,-430.1821853,0.00021278,2]
[349573543,1737304232587,-308.1696854,0.00021278,2]
[349573544,1737304232596,-215.0923738,0.00021278,2]
[349573546,1737304232606,-154.0848427,0.00021278,2]
[349573548,1737304232614,-153.0,0.00021278,2]
[349573550,1737304232628,-364.073,0.0002137,2]
[349573552,1737304232636,-1000.0,0.00021521,2]
[349573554,1737304232646,-1000.0,0.00021521,2]
[349573556,1737304232655,-9677.42369375,0.00021771,2]
[349573558,1737304232664,-9513.40517259,0.000219,7]
[349573560,1737304232674,-156.241,0.000219,2]
[349573562,1737304232684,-5788.52753475,0.000219,3]
[349573564,1737304232693,-5138.38648411,0.0002191,2]
[349573566,1737304232702,-441.97077265,0.00021916,2]
[349573568,1737304232712,-172.85735647,0.00021916,2]
[349573570,1737304232721,-166.03277662,0.00021916,2]
[349573572,1737304232730,-208.51,0.00021917,2]
[349573574,1737304232739,-500.0,0.00021917,3]
[349573576,1737304232749,-500.0,0.00021917,3]
[349573578,1737304232759,-500.0,0.00021917,2]
[349573580,1737304232768,-500.0,0.00021917,3]
[349573582,1737304232778,-500.0,0.00021917,3]
[349573584,1737304232787,-700.08,0.00021917,3]
[349573586,1737304232797,-500.0,0.00021917,3]
[349573588,1737304232806,-500.0,0.00021917,3]
[349573590,1737304232816,-500.0,0.00021917,3]
[349573592,1737304232825,-500.0,0.00021917,3]
[349573594,1737304232834,-500.0,0.00021917,3]
[349573596,1737304232843,-500.0,0.00021917,3]
[349573598,1737304232853,-500.0,0.00021917,3]
[349573600,1737304232862,-500.0,0.00021917,3]
[349573602,1737304232877,-500.0,0.00021917,3]
[349573604,1737304232887,-177.88,0.00021917,3]
[349573606,1737304232896,-500.0,0.00021917,3]
[349573609,1737304232906,-500.0,0.00021917,3]
[349573611,1737304232915,-500.0,0.00021917,3]
[349573612,1737304232924,-500.0,0.00021917,3]
[349573615,1737304232934,-500.0,0.00021917,3]
[349573617,1737304232943,-500.0,0.00021917,3]
[349573619,1737304232953,-500.0,0.00021917,3]
[349573621,1737304232963,-531.88,0.00021917,3]
[349573623,1737304232972,-500.0,0.00021917,3]
[349573625,1737304232981,-500.0,0.00021917,3]
[349573627,1737304232990,-500.0,0.00021917,3]
[349573629,1737304233000,-500.0,0.00021917,3]
[349573631,1737304233009,-698.61,0.00021917,3]
[349573633,1737304233019,-500.0,0.00021917,3]
[349573635,1737304233028,-500.0,0.00021917,3]
[349573637,1737304233038,-359.36,0.00021917,3]
[349573639,1737304233047,-500.0,0.00021917,3]
[349573641,1737304233057,-500.0,0.00021917,3]
[349573643,1737304233067,-500.0,0.00021917,3]
[349573645,1737304233077,-961.98,0.00021917,2]
[349573647,1737304233086,-500.0,0.00021917,3]
[349573649,1737304233096,-232.09,0.00021917,3]
[349573651,1737304233105,-500.0,0.00021917,3]
[349573653,1737304233114,-500.0,0.00021917,3]
[349573655,1737304233126,-500.0,0.00021917,3]
[349573657,1737304233135,-500.0,0.00021917,3]
[349573659,1737304233145,-500.0,0.00021917,3]
[349573661,1737304233154,-500.0,0.00021917,3]
[349573663,1737304233164,-1166.31,0.00021917,3]
[349573665,1737304233174,-1153.99,0.00021917,3]
[349573667,1737304233184,-500.0,0.00021917,3]
[349573669,1737304233194,-500.0,0.00021917,3]
[349573671,1737304233204,-725.16,0.00021917,3]
[349573673,1737304233214,-500.0,0.00021917,3]
[349573675,1737304233225,-3409.69,0.00021917,3]
[349573677,1737304233237,-1142.22,0.00021917,3]
[349573679,1737304233247,-6299.3,0.00021917,3]
[349573681,1737304233256,-500.0,0.00021917,3]
[349573683,1737304233266,-14064.24,0.00021917,3]
[349573685,1737304233276,-368.77626026,0.00021917,3]
[349573687,1737304233286,-160.0,0.00021917,3]
[349573689,1737304233296,-500.0,0.00021917,3]
[349573691,1737304233305,-2848.01,0.00021917,3]
[349573693,1737304233315,-734.32,0.00021917,3]
[349573695,1737304233325,-500.0,0.00021917,3]
[349573697,1737304233335,-8262.37,0.00021917,3]
[349573699,1737304233344,-231.68149206,0.00021917,3]
[349573700,1737304233358,-499.0,0.00021917,2]
[349573701,1737304233370,-500.0,0.00021917,3]
[349573702,1737304233383,-1951.66,0.00021917,3]
[349573703,1737304233392,-516.53,0.00021917,3]
[349573704,1737304233402,-500.0,0.00021917,3]
[349573705,1737304233412,-196.77013394,0.00021917,3]
[349573706,1737304233422,-1182.7,0.00021917,3]
[349573707,1737304233432,-759.74,0.00021917,3]
[349573708,1737304233442,-500.0,0.00021917,3]
[349573709,1737304233451,-841.27,0.00021917,3]
[349573710,1737304233461,-1730.43,0.00021917,3]
[349573711,1737304233470,-500.0,0.00021917,3]
[349573712,1737304233480,-514.81,0.00021917,3]
[349573713,1737304233490,-500.0,0.00021917,2]
[349573714,1737304233500,-500.0,0.00021917,3]
[349573715,1737304233510,-574.97,0.00021917,3]
[349573716,1737304233520,-7525.38,0.00021917,3]
[349573718,1737304233529,-1856.23,0.00021917,3]
[349573719,1737304233539,-2149.34,0.00021917,3]
[349573721,1737304233548,-576.03,0.00021917,3]
[349573723,1737304233558,-3741.74,0.00021917,3]
[349573725,1737304233567,-820.54,0.00021917,3]
[349573727,1737304233577,-481.62,0.00021917,3]
[349573729,1737304233586,-500.0,0.00021917,3]
[349573731,1737304233595,-924.55,0.00021917,3]
[349573733,1737304233605,-24203.28,0.00021917,3]
[349573735,1737304233614,-2228.67,0.00021917,3]
[349573737,1737304233627,-655.35,0.00021917,3]
[349573739,1737304233637,-500.0,0.00021917,3]
[349573741,1737304233646,-776.31,0.00021917,3]
[349573743,1737304233657,-884.75,0.00021917,3]
[349573745,1737304233667,-3073.75,0.00021917,3]
[349573747,1737304233677,-500.0,0.00021917,3]
[349573749,1737304233688,-605.29,0.00021917,3]
[349573751,1737304233697,-500.0,0.00021973,2]
[349573753,1737304233707,-331.51770157,0.00022,7]
[349573755,1737304233716,-1000.0,0.00022,22]
[349573757,1737304233726,-14966.65113586,0.00022,2]
[349573759,1737304233736,-194.0,0.00022,2]
[349573761,1737304233745,-5788.52753449,0.00022003,3]
[349573763,1737304233755,-500.0,0.00022054,2]
[349573765,1737304233765,-700.08,0.00022054,3]
[349573767,1737304233776,-500.0,0.00022054,3]
[349573769,1737304233786,-500.0,0.00022054,3]
[349573771,1737304233797,-500.0,0.00022054,3]
[349573773,1737304233807,-500.0,0.00022054,3]
[349573775,1737304233817,-151.0,0.00022054,7]
[349573777,1737304233827,-151.0,0.00022054,7]
[349573779,1737304233836,-207.591824,0.00022054,7]
[349573782,1737304233847,-324.14600673,0.00022054,3]
[349573784,1737304233856,-500.0,0.00022054,3]
[349573786,1737304233866,-151.0,0.00022054,7]
[349573788,1737304233878,-151.0,0.00022054,7]
[349573790,1737304233888,-500.0,0.00022054,3]
[349573791,1737304233897,-531.88,0.00022054,3]
[349573793,1737304233906,-151.0,0.00022054,7]
[349573795,1737304233916,-500.0,0.00022054,3]
[349573798,1737304233926,-698.61,0.00022054,3]
[349573800,1737304233936,-500.0,0.00022054,3]
[349573802,1737304233945,-151.0,0.00022054,7]
[349573804,1737304233954,-151.0,0.00022054,7]
[349573805,1737304233964,-500.0,0.00022054,3]
[349573808,1737304233974,-151.0,0.00022054,7]
[349573810,1737304233984,-961.98,0.00022054,2]
[349573812,1737304233994,-151.0,0.00022054,7]
[349573813,1737304234004,-151.0,0.00022054,7]
[349573815,1737304234013,-151.0,0.00022054,7]
[349573818,1737304234023,-500.0,0.00022054,3]
[349573820,1737304234033,-151.0,0.00022054,7]
[349573822,1737304234043,-500.0,0.00022054,3]
[349573823,1737304234054,-151.0,0.00022054,7]
[349573825,1737304234064,-151.0,0.00022054,7]
[349573827,1737304234075,-151.0,0.00022054,7]
[349573829,1737304234084,-1166.31,0.00022054,3]
[349573831,1737304234094,-151.0,0.00022054,7]
[349573833,1737304234104,-1153.99,0.00022054,3]
[349573835,1737304234113,-292.532649,0.00022054,7]
[349573837,1737304234123,-151.0,0.00022054,7]
[349573839,1737304234133,-151.0,0.00022054,7]
[349573841,1737304234143,-500.0,0.00022054,3]
[349573843,1737304234154,-500.0,0.00022054,3]
[349573845,1737304234164,-725.16,0.00022054,3]
[349573848,1737304234174,-3409.69,0.00022054,3]
[349573850,1737304234184,-1142.22,0.00022054,3]
[349573852,1737304234194,-6299.3,0.00022054,3]
[349573854,1737304234204,-151.0,0.00022054,7]
[349573856,1737304234214,-14064.24,0.00022054,3]
[349573858,1737304234224,-151.0,0.00022054,7]
[349573859,1737304234234,-151.0,0.00022054,7]
[349573862,1737304234244,-2848.01,0.00022054,3]
[349573864,1737304234254,-734.32,0.00022054,3]
[349573866,1737304234263,-500.0,0.00022054,3]
[349573868,1737304234273,-8262.37,0.00022054,3]
[349573869,1737304234282,-151.0,0.00022054,7]
[349573872,1737304234292,-500.0,0.00022054,3]
[349573874,1737304234302,-1951.66,0.00022054,3]
[349573876,1737304234312,-516.53,0.00022054,3]
[349573878,1737304234322,-151.0,0.00022054,7]
[349573880,1737304234331,-151.0,0.00022054,7]
[349573882,1737304234345,-500.0,0.00022054,3]
[349573884,1737304234354,-247.787534,0.00022054,7]
[349573886,1737304234364,-1182.7,0.00022054,3]
[349573888,1737304234375,-154.704502,0.00022054,7]
[349573890,1737304234386,-759.74,0.00022054,3]
[349573892,1737304234397,-151.0,0.00022054,7]
[349573894,1737304234407,-151.0,0.00022054,7]
[349573896,1737304234417,-500.0,0.00022054,3]
[349573908,1737304234517,-841.27,0.00022054,3]
[349573910,1737304234530,-1730.43,0.00022054,3]
[349573912,1737304234541,-151.0,0.00022054,7]
[349573914,1737304234551,-153.210539,0.00022054,7]
[349573916,1737304234560,-151.0,0.00022054,7]
[349573918,1737304234570,-514.81,0.00022054,3]
[349573920,1737304234579,-404.12,0.00022054,2]
[349573922,1737304234589,-500.0,0.00022054,3]
[349573924,1737304234599,-151.0,0.00022054,7]
[349573926,1737304234609,-574.97,0.00022054,3]
[349573928,1737304234619,-7525.38,0.00022054,3]
[349573930,1737304234632,-1856.23,0.00022054,3]
[349573932,1737304234641,-398.427834,0.00022054,7]
[349573934,1737304234651,-151.0,0.00022054,7]
[349573937,1737304234660,-398.427834,0.00022054,7]
[349573939,1737304234669,-2149.34,0.00022054,3]
[349573940,1737304234679,-576.03,0.00022054,3]
[349573943,1737304234689,-3741.74,0.00022054,3]
[349573945,1737304234698,-820.54,0.00022054,3]
[349573947,1737304234707,-500.0,0.00022054,3]
[349573949,1737304234716,-924.55,0.00022054,3]
[349573951,1737304234725,-24203.28,0.00022054,3]
[349573953,1737304234735,-2228.67,0.00022054,3]
[349573955,1737304234743,-655.35,0.00022054,3]
[349573957,1737304234752,-151.0,0.00022054,7]
[349573958,1737304234761,-776.31,0.00022054,3]
[349573960,1737304234770,-151.0,0.00022054,7]
[349573962,1737304234780,-884.75,0.00022054,3]
[349573965,1737304234789,-3073.75,0.00022054,3]
[349573967,1737304234799,-151.0,0.00022054,7]
[349573969,1737304234808,-500.0,0.00022054,3]
[349573971,1737304234817,-151.0,0.00022054,7]
[349573973,1737304234827,-500.0,0.00022073,2]
[349573975,1737304234836,-500.0,0.00022073,2]
[349573977,1737304234845,-603.71989249,0.00022073,2]
[349573979,1737304234854,-5788.52753449,0.00022107,3]
[349573981,1737304234864,-592.53757263,0.00022129,2]
[349573983,1737304234876,-157.0,0.00022135,2]
[349573985,1737304234886,-157.0,0.00022135,2]
[349573987,1737304234895,-157.0,0.00022135,2]
[349573989,1737304234904,-157.0,0.00022135,2]
[349573991,1737304234913,-157.0,0.00022135,2]
[349573993,1737304234923,-157.0,0.00022135,2]
[349573995,1737304234932,-157.0,0.00022135,2]
[349573997,1737304234941,-157.0,0.00022135,2]
[349573999,1737304234951,-157.0,0.00022135,2]
[349574001,1737304234960,-157.0,0.00022135,2]
[349574003,1737304234970,-157.0,0.00022135,2]
[349574005,1737304234980,-157.0,0.00022135,2]
[349574007,1737304234989,-157.0,0.00022135,2]
[349574009,1737304234998,-157.0,0.00022135,2]
[349574011,1737304235009,-157.0,0.00022135,2]
[349574013,1737304235018,-157.0,0.00022135,2]
[349574015,1737304235027,-157.0,0.00022135,2]
[349574016,1737304235037,-157.0,0.00022135,2]
[349574019,1737304235046,-157.0,0.00022135,2]
[349574021,1737304235055,-157.0,0.00022135,2]
[349574023,1737304235065,-151.0,0.00022135,2]
[349574025,1737304235074,-151.0,0.00022135,2]
[349574027,1737304235083,-151.0,0.00022135,2]
[349574029,1737304235093,-151.0,0.00022135,2]
[349574031,1737304235102,-151.0,0.00022135,2]
[349574033,1737304235110,-151.0,0.00022135,2]
[349574035,1737304235120,-214.13,0.00022135,2]
[349574037,1737304235133,-151.0,0.00022135,7]
[349574039,1737304235142,-151.0,0.00022135,7]
[349574041,1737304235151,-151.0,0.00022135,7]
[349574043,1737304235161,-151.0,0.00022135,7]
[349574045,1737304235172,-151.0,0.00022135,7]
[349574047,1737304235181,-152.904828,0.00022168,7]
[349574049,1737304235191,-241.668256,0.00022168,7]
[349574051,1737304235200,-151.0,0.00022168,7]
[349574053,1737304235209,-2308.0,0.00022168,2]
[349574055,1737304235219,-155.021,0.00022168,2]
[349574057,1737304235228,-395.0,0.00022168,2]
[349574058,1737304235237,-427.42697317,0.00022173,2]
[349574060,1737304235246,-425.20594331,0.00022189,2]
[349574062,1737304235255,-500.0,0.00022189,2]
[349574064,1737304235265,-151.0,0.0002219,2]
[349574066,1737304235274,-151.0,0.0002219,2]
[349574068,1737304235283,-151.0,0.0002219,2]
[349574070,1737304235292,-151.0,0.0002219,2]
[349574072,1737304235302,-151.0,0.0002219,2]
[349574074,1737304235310,-151.0,0.0002219,2]
[349574076,1737304235320,-151.0,0.0002219,2]
[349574077,1737304235329,-151.0,0.0002219,2]
[349574079,1737304235339,-151.0,0.0002219,2]
[349574081,1737304235349,-151.0,0.0002219,2]
[349574083,1737304235359,-151.0,0.0002219,2]
[349574085,1737304235368,-151.0,0.0002219,2]
[349574087,1737304235381,-151.0,0.0002219,2]
[349574089,1737304235390,-151.0,0.0002219,2]
[349574091,1737304235401,-151.0,0.0002219,2]
[349574093,1737304235411,-151.0,0.0002219,2]
[349574096,1737304235420,-151.0,0.0002219,2]
[349574097,1737304235432,-151.0,0.0002219,2]
[349574099,1737304235443,-151.0,0.0002219,2]
[349574102,1737304235452,-151.0,0.0002219,2]
[349574103,1737304235461,-151.0,0.0002219,2]
[349574105,1737304235471,-151.0,0.0002219,2]
[349574107,1737304235480,-151.0,0.0002219,2]
[349574109,1737304235490,-151.0,0.0002219,2]
[349574111,1737304235499,-200.23,0.0002219,2]
[349574113,1737304235509,-249.0,0.0002219,2]
[349574116,1737304235518,-151.0,0.0002219,7]
[349574118,1737304235529,-151.0,0.0002219,7]
[349574120,1737304235537,-151.0,0.0002219,7]
[349574122,1737304235546,-151.0,0.0002219,7]
[349574123,1737304235555,-151.0,0.0002219,7]
[349574126,1737304235565,-151.0,0.0002219,7]
[349574128,1737304235574,-398.427834,0.0002219,7]
[349574130,1737304235583,-151.0,0.0002219,7]
[349574132,1737304235592,-398.427834,0.0002219,7]
[349574133,1737304235602,-151.0,0.0002219,7]
[349574135,1737304235611,-151.0,0.0002219,7]
[349574137,1737304235623,-153.188739,0.00022191,7]
[349574139,1737304235632,-151.0,0.00022191,7]
[349574141,1737304235641,-153.902647,0.00022191,7]
[349574143,1737304235650,-700.08,0.00022191,3]
[349574145,1737304235659,-500.0,0.00022191,3]
[349574147,1737304235669,-500.0,0.00022191,3]
[349574150,1737304235679,-500.0,0.00022191,3]
[349574152,1737304235688,-152.313665,0.00022191,7]
[349574154,1737304235697,-500.0,0.00022191,3]
[349574156,1737304235706,-151.0,0.00022191,7]
[349574158,1737304235715,-301.44,0.00022191,3]
[349574160,1737304235725,-500.0,0.00022191,3]
[349574161,1737304235734,-531.88,0.00022191,3]
[349574163,1737304235744,-698.61,0.00022191,3]
[349574165,1737304235753,-500.0,0.00022191,3]
[349574167,1737304235763,-151.0,0.00022191,7]
[349574169,1737304235772,-151.0,0.00022191,7]
[349574171,1737304235781,-500.0,0.00022191,3]
[349574173,1737304235791,-961.98,0.00022191,2]
[349574175,1737304235800,-500.0,0.00022191,3]
[349574177,1737304235810,-500.0,0.00022191,3]
[349574180,1737304235820,-151.0,0.00022191,7]
[349574182,1737304235829,-186.316394,0.00022191,7]
[349574183,1737304235839,-1166.31,0.00022191,3]
[349574185,1737304235848,-151.0,0.00022191,7]
[349574187,1737304235859,-1153.99,0.00022191,3]
[349574189,1737304235869,-151.0,0.00022191,7]
[349574191,1737304235880,-151.0,0.00022191,7]
[349574193,1737304235890,-500.0,0.00022191,3]
[349574195,1737304235899,-500.0,0.00022191,3]
[349574197,1737304235908,-725.16,0.00022191,3]
[349574200,1737304235918,-3409.69,0.00022191,3]
[349574201,1737304235929,-1142.22,0.00022191,3]
[349574203,1737304235939,-6299.3,0.00022191,3]
[349574205,1737304235949,-14064.24,0.00022191,3]
[349574208,1737304235958,-151.0,0.00022191,7]
[349574210,1737304235967,-2848.01,0.00022191,3]
[349574211,1737304235976,-734.32,0.00022191,3]
[349574213,1737304235985,-500.0,0.00022191,3]
[349574215,1737304235995,-8262.37,0.00022191,3]
[349574217,1737304236003,-500.0,0.00022191,3]
[349574218,1737304236015,-1951.66,0.00022191,3]
[349574220,1737304236024,-516.53,0.00022191,3]
[349574222,1737304236034,-151.0,0.00022191,7]
[349574224,1737304236045,-151.0,0.00022191,7]
[349574227,1737304236054,-500.0,0.00022191,3]
[349574229,1737304236063,-151.0,0.00022191,7]
[349574230,1737304236072,-151.0,0.00022191,7]
[349574232,1737304236081,-1182.7,0.00022191,3]
[349574234,1737304236090,-759.74,0.00022191,3]
[349574237,1737304236099,-151.0,0.00022191,7]
[349574239,1737304236108,-151.0,0.00022191,7]
[349574241,1737304236118,-151.0,0.00022191,7]
[349574243,1737304236130,-151.0,0.00022191,7]
[349574244,1737304236140,-500.0,0.00022191,3]
[349574246,1737304236149,-841.27,0.00022191,3]
[349574249,1737304236160,-1730.43,0.00022191,3]
[349574251,1737304236169,-151.0,0.00022191,7]
[349574253,1737304236179,-151.0,0.00022191,7]
[349574255,1737304236189,-514.81,0.00022191,3]
[349574257,1737304236198,-151.0,0.00022191,7]
[349574258,1737304236208,-500.0,0.00022191,3]
[349574260,1737304236219,-574.97,0.00022191,3]
[349574262,1737304236229,-7525.38,0.00022191,3]
[349574264,1737304236239,-1856.23,0.00022191,3]
[349574267,1737304236248,-398.427834,0.00022191,7]
[349574269,1737304236257,-2149.34,0.00022191,3]
[349574271,1737304236267,-398.427834,0.00022191,7]
[349574273,1737304236277,-576.03,0.00022191,3]
[349574275,1737304236286,-3741.74,0.00022191,3]
[349574277,1737304236296,-820.54,0.00022191,3]
[349574279,1737304236305,-500.0,0.00022191,3]
[349574281,1737304236315,-924.55,0.00022191,3]
[349574282,1737304236324,-24203.28,0.00022191,3]
[349574284,1737304236333,-2228.67,0.00022191,3]
[349574286,1737304236344,-655.35,0.00022191,3]
[349574288,1737304236356,-151.0,0.00022191,7]
[349574290,1737304236365,-776.31,0.00022191,3]
[349574292,1737304236379,-151.0,0.00022191,7]
[349574294,1737304236390,-884.75,0.00022191,3]
[349574296,1737304236399,-3073.75,0.00022191,3]
[349574298,1737304236409,-151.0,0.00022191,7]
[349574300,1737304236418,-151.0,0.00022191,7]
[349574302,1737304236428,-194.0,0.00022192,2]
[349574304,1737304236438,-350.0,0.000222,2]
[349574306,1737304236447,-5788.52753449,0.0002221,3]
[349574308,1737304236457,-1000.0,0.0002222,2]
[349574310,1737304236466,-718.70574835,0.00022228,2]
[349574312,1737304236475,-500.0,0.00022273,2]
[349574314,1737304236485,-500.0,0.00022273,2]
[349574316,1737304236494,-500.0,0.00022273,2]
[349574318,1737304236504,-284.22954522,0.00022273,2]
[349574320,1737304236513,-500.0,0.00022273,2]
[349574322,1737304236523,-500.0,0.00022273,2]
[349574324,1737304236533,-500.0,0.00022273,2]
[349574326,1737304236542,-343.87813782,0.00022273,2]
[349574328,1737304236551,-319.84608113,0.00022273,2]
[349574330,1737304236560,-500.0,0.00022273,2]
[349574332,1737304236569,-1000.0,0.0002228,2]
[349574334,1737304236579,-188.75,0.000223,2]
[349574336,1737304236588,-1841.82,0.000223,2]
[349574338,1737304236597,-2873.28655752,0.000223,2]
[349574340,1737304236607,-2873.28655752,0.000223,2]
[349574342,1737304236616,-2873.28655752,0.000223,2]
[349574344,1737304236630,-2873.28655752,0.000223,2]
[349574346,1737304236639,-504.96456806,0.000223,8]
[349574348,1737304236648,-151.0,0.000223,7]
[349574350,1737304236658,-620.0,0.000223,2]
[349574361,1737304236750,-267516.13684559,0.000223,7]
[349574366,1737304236787,-605.29,0.00022054,3]
[349574368,1737304236796,-500.0,0.00022189,2]
[349574370,1737304236806,-55467.09288783,0.000223,7]
[349574373,1737304236817,-638.878122,0.000223,7]
[349574514,1737304238335,-1023.31257361,0.000209,2]
[349574517,1737304238346,-536.0,0.00022168,2]
[349574519,1737304238357,-500.0,0.00022189,2]
[349574521,1737304238366,-500.0,0.00022189,2]
[349574523,1737304238378,-114.02404713,0.00022189,2]